bitfinex/quotes_SOLUSD_20250129
["timestamp","ask_amount","ask_price","bid_price","bid_amount"]
[1738177905495,1.0,225.92,225.73,9.66313603]
[1738177905496,33.65248083,225.79,225.73,9.66313603]
[1738177905714,34.65248083,225.94,225.73,9.66313603]
[1738177905715,33.65248083,225.77,225.73,8.99869419]
[1738177905915,0.12549,225.75,225.73,8.99869419]
[1738177906104,24.027864,225.73,225.6,0.66454245]
[1738177906420,33.65248083,225.65,225.57,0.66475198]
[1738177906716,3.1006,225.76,225.58,0.06009728]
[1738177906922,33.65248083,225.67,225.59,0.66482472]
[1738177907094,33.65248083,225.67,225.55,0.66478293]
[1738177907295,33.65248083,225.67,225.55,0.8879266]
[1738177907497,33.65248083,225.67,225.6,13.65757744]
[1738177907891,33.65248083,225.61,225.54,6.0046]
[1738177908213,33.65248083,225.59,225.51,0.66499193]
[1738177908529,34.53848083,225.71,225.59,27.39749762]
[1738177908719,33.65248083,225.73,225.6,0.66476595]
[1738177909222,33.65248083,225.77,225.62,20.0]
[1738177909420,33.65248083,225.75,225.63,0.66456599]
[1738177909597,33.65248083,225.73,225.6,0.66467526]
[1738177910014,33.65248083,225.77,225.63,10.9677]
[1738177910298,33.65248083,225.77,225.64,0.6645224]
[1738177910498,33.65248083,225.75,225.64,0.6645224]
[1738177911309,0.8856,225.82,225.68,13.70920992]
[1738177911518,56.42327733,225.84,225.69,0.66439386]
[1738177911919,56.42327733,225.84,225.71,20.0]
[1738177912228,56.42327733,225.84,225.76,13.70920992]
[1738177912229,33.65248083,225.82,225.76,13.70920992]
[1738177912531,22.7707965,225.84,225.76,13.70920992]
[1738177912532,33.65248083,225.78,225.76,13.70920992]
[1738177912747,33.65248083,225.78,225.72,3.02704653]
[1738177912909,33.65248083,225.73,225.63,7.20029796]
[1738177913107,33.65248083,225.71,225.63,6.5357]
[1738177913408,35.65248083,225.83,225.54,7.7211]
[1738177913409,33.65248083,225.67,225.54,7.7211]
[1738177913635,33.77797083,225.72,225.55,0.66482147]
[1738177913636,33.65248083,225.63,225.55,0.66482147]
[1738177914049,0.8864,225.62,225.54,6.1922]
[1738177914331,0.8864,225.62,225.54,0.66496068]
[1738177914332,33.65248083,225.61,225.54,0.66496068]
[1738177914530,33.65248083,225.61,225.52,47.13739465]
[1738177914852,33.65248083,225.61,225.52,41.09624643]
[1738177915016,33.65248083,225.55,225.52,41.09624643]
[1738177915420,33.65248083,225.53,225.52,41.09624643]
[1738177915629,33.65248083,225.53,225.52,40.28064643]
[1738177915830,57.68034483,225.53,225.52,39.46504643]
[1738177916026,57.93132483,225.53,225.52,39.46504643]
[1738177916346,57.80583483,225.53,225.52,39.46504643]
[1738177916707,0.12549,225.5,225.41,27.39749762]
[1738177916933,33.65248083,225.45,225.41,27.39749762]
[1738177917234,33.65248083,225.43,225.41,27.39749762]
[1738177917436,33.65248083,225.45,225.41,27.39749762]
[1738177917617,33.77797083,225.47,225.41,27.39749762]
[1738177918129,33.65248083,225.47,225.38,3.03538927]
[1738177918642,33.65248083,225.47,225.38,3.70092472]
[1738177919015,33.76940877,225.47,225.38,37.47033349]
[1738177919739,33.76940877,225.51,225.38,5.10233545]
[1738177919916,2.2166,225.57,225.38,5.10233545]
[1738177919917,33.76940877,225.55,225.46,33.76940877]
[1738177920234,0.8865,225.59,225.44,33.76940877]
[1738177920235,33.76940877,225.53,225.44,33.76940877]
[1738177920444,33.76940877,225.59,225.5,33.76940877]
[1738177920639,34.76940877,225.72,225.42,33.76940877]
[1738177920640,33.76940877,225.52,225.42,33.76940877]
[1738177920844,33.76940877,225.5,225.4,33.76940877]
[1738177921031,33.76940877,225.5,225.41,0.66533998]
[1738177921235,33.76940877,225.46,225.38,34.43474688]
[1738177921830,33.76940877,225.41,225.34,27.39749762]
[1738177922032,33.76940877,225.43,225.34,61.83245898]
[1738177922237,33.76940877,225.43,225.35,0.66553229]
[1738177922438,0.8871,225.44,225.38,0.063]
[1738177923146,0.8871,225.46,225.39,0.66546459]
[1738177923446,0.12549,225.51,225.39,0.66546459]
[1738177923447,33.76940877,225.53,225.44,33.76940877]
[1738177923741,33.76940877,225.53,225.45,0.66521658]
[1738177924441,34.65600877,225.57,225.48,33.76940877]
[1738177924645,34.65600877,225.57,225.49,0.66508617]
[1738177924819,33.76940877,225.53,225.44,33.76940877]
[1738177925019,33.76940877,225.45,225.38,0.063]
[1738177925215,33.76940877,225.43,225.38,0.063]
[1738177925417,33.76940877,225.41,225.38,0.063]
[1738177925712,33.76940877,225.43,225.38,0.063]
[1738177926031,33.76940877,225.41,225.38,0.063]
[1738177926546,33.76940877,225.5,225.38,0.063]
[1738177926547,33.76940877,225.39,225.38,0.063]
[1738177926730,0.12549,225.43,225.38,0.063]
[1738177926731,33.76940877,225.41,225.38,0.063]
[1738177926935,0.8871,225.45,225.38,33.83240877]
[1738177927319,33.76940877,225.43,225.38,0.063]
[1738177928014,33.76940877,225.39,225.33,0.063]
[1738177928218,33.76940877,225.37,225.33,0.063]
[1738177928414,0.8874,225.36,225.33,0.063]
[1738177931650,0.8873,225.4,225.34,33.76940877]
[1738177931950,0.8873,225.4,225.34,34.43493545]
[1738177932328,0.8873,225.4,225.33,0.72854822]
[1738177932547,33.76940877,225.39,225.33,0.063]
[1738177933226,0.8873,225.4,225.33,0.72861748]
[1738177933426,0.8873,225.4,225.34,33.76940877]
[1738177933625,2.2175,225.48,225.38,33.76940877]
[1738177933824,0.8866,225.56,225.46,33.76940877]
[1738177934035,0.8865,225.6,225.52,33.76940877]
[1738177934226,0.8865,225.6,225.53,0.66504641]
[1738177934424,0.8865,225.6,225.54,33.76940877]
[1738177934640,0.8864,225.62,225.56,33.76940877]
[1738177934832,33.76940877,225.61,225.52,34.43429849]
[1738177935031,0.8864,225.62,225.54,33.76940877]
[1738177935248,0.8864,225.62,225.45,1.0]
[1738177935249,0.8864,225.62,225.56,33.76940877]
[1738177935431,33.76940877,225.72,225.6,33.76940877]
[1738177935432,2.2152,225.72,225.6,33.76940877]
[1738177935630,0.03,225.75,225.68,33.76940877]
[1738177935834,0.9159,225.75,225.68,33.76940877]
[1738177936055,0.03,225.75,225.68,33.76940877]
[1738177936638,0.03,225.75,225.68,38.86475447]
[1738177936835,0.03,225.75,225.74,33.76940877]
[1738177937153,0.03,225.84,225.74,34.43370817]
[1738177937358,0.03,225.84,225.82,33.76940877]
[1738177937662,0.03,225.84,225.83,0.6640593]
[1738177937979,26.73317269,225.93,225.83,34.43346807]
[1738177938145,0.8852,225.94,225.87,33.76940877]
[1738177938338,0.8852,225.94,225.88,0.66397411]
[1738177938540,0.8852,225.94,225.87,33.76940877]
[1738177938839,33.76940877,225.92,225.83,33.76940877]
[1738177939036,33.76940877,225.88,225.82,0.66395758]
[1738177939241,34.65460877,225.94,225.85,33.76940877]
[1738177939443,0.8852,225.94,225.87,33.76940877]
[1738177939637,0.8852,225.94,225.85,33.76940877]
[1738177939638,34.65460877,225.94,225.85,33.76940877]
[1738177939841,34.65460877,225.94,225.86,0.66397231]
[1738177940047,33.76940877,225.9,225.81,39.77400877]
[1738177940251,33.76940877,225.88,225.82,0.66412945]
[1738177940475,33.76940877,225.88,225.81,6.0046]
[1738177940767,0.8854,225.87,225.82,0.6641632]
[1738177941059,33.76940877,225.86,225.77,33.76940877]
[1738177941361,33.76940877,225.86,225.78,0.66419496]
[1738177941539,33.76940877,225.84,225.78,0.66419496]
[1738177941739,33.76940877,225.82,225.76,0.66427148]
[1738177941943,33.76940877,225.8,225.72,7.11337942]
[1738177942136,24.278844,225.86,225.73,33.76940877]
[1738177942137,33.76940877,225.82,225.73,33.76940877]
[1738177942338,33.76940877,225.85,225.77,33.76940877]
[1738177942672,0.8855,225.84,225.78,0.66425415]
[1738177942843,0.8855,225.84,225.75,33.76940877]
[1738177943164,0.8855,225.84,225.76,0.66430215]
[1738177943464,33.76940877,225.83,225.76,0.66430215]
[1738177943874,33.76940877,225.79,225.72,0.66430638]
[1738177944175,3.0994,225.84,225.76,33.76940877]
[1738177944464,3.0994,225.84,225.72,33.76940877]
[1738177944465,0.8855,225.84,225.78,33.76940877]
[1738177944769,2.2135,225.89,225.72,33.76940877]
[1738177944770,0.8854,225.88,225.8,33.76940877]
[1738177944947,33.76940877,225.85,225.76,33.76940877]
[1738177945267,33.76940877,225.83,225.74,33.76940877]
[1738177945502,33.76940877,225.85,225.76,33.76940877]
[1738177945768,33.76940877,225.87,225.78,33.76940877]
[1738177945967,33.76940877,225.87,225.79,0.66419504]
[1738177946182,0.8854,225.88,225.82,33.76940877]
[1738177946471,0.03,225.94,225.76,1.063]
[1738177946472,33.79940877,225.94,225.86,33.76940877]
[1738177946769,33.79940877,225.94,225.87,0.66397432]
[1738177946949,0.03,225.94,225.87,0.66397432]
[1738177947274,34.68460877,225.94,225.87,0.66397432]
[1738177947659,36.89750877,225.94,225.87,0.66397432]
[1738177947863,36.89750877,225.94,225.82,0.66398959]
[1738177947864,33.76940877,225.88,225.82,0.66398959]
[1738177948165,33.76940877,225.84,225.76,0.72720894]
[1738177948338,1.0,225.9,225.76,0.063]
[1738177948541,33.76940877,225.77,225.76,0.063]
[1738177948760,33.76940877,225.79,225.76,0.063]
[1738177949045,3.0989,225.88,225.76,0.063]
[1738177949046,33.76940877,225.81,225.76,0.063]
[1738177949265,33.76940877,225.79,225.76,0.063]
[1738177949772,33.76940877,225.77,225.76,0.063]
[1738177950164,23.776884,225.76,225.63,0.66451406]
[1738177950364,1.12549,225.82,225.63,0.66451406]
[1738177950365,33.76940877,225.71,225.63,0.66451406]
[1738177950674,33.76940877,225.73,225.64,33.76940877]
[1738177950871,33.76940877,225.73,225.63,0.66451406]
[1738177950872,33.76940877,225.83,225.74,26.2691]
[1738177951179,33.76940877,225.88,225.78,33.76940877]
[1738177951380,33.76940877,225.92,225.84,33.76940877]
[1738177951581,33.76940877,225.92,225.85,0.66398409]
[1738177951787,33.76940877,225.88,225.8,33.76940877]
[1738177952099,33.76940877,225.84,225.76,34.43346596]
[1738177952262,33.76940877,225.82,225.76,0.66405719]
[1738177952470,33.76940877,225.78,225.69,0.66433881]
[1738177952871,0.8858,225.77,225.69,0.66433881]
[1738177953076,33.76940877,225.76,225.69,0.66433881]
[1738177953397,33.76940877,225.74,225.69,0.66433881]
[1738177953566,33.76940877,225.72,225.65,6.1651]
[1738177953865,33.76940877,225.66,225.58,33.76940877]
[1738177954062,33.76940877,225.68,225.6,33.76940877]
[1738177954305,33.76940877,225.75,225.66,33.76940877]
[1738177954465,34.65520877,225.77,225.68,33.76940877]
[1738177954668,34.65520877,225.77,225.69,0.6644917]
[1738177954865,33.76940877,225.75,225.66,33.76940877]
[1738177955185,33.76940877,225.77,225.68,33.76940877]
[1738177955387,33.76940877,225.77,225.69,0.66446696]
[1738177955565,33.76940877,225.79,225.7,33.76940877]
[1738177955765,33.76940877,225.79,225.71,0.66436376]
[1738177956163,0.8856,225.82,225.74,33.76940877]
[1738177956398,0.8855,225.84,225.76,33.76940877]
[1738177956602,0.8855,225.84,225.75,0.66430413]
[1738177956603,0.8855,225.84,225.78,33.76940877]
[1738177956896,34.65490877,225.84,225.78,0.66418662]
[1738177957073,1.63539,225.93,225.78,0.66418662]
[1738177957074,33.76940877,225.86,225.78,0.66418662]
[1738177957271,0.8854,225.89,225.82,33.76940877]
[1738177957588,0.8854,225.89,225.83,0.66408968]
[1738177958104,0.8854,225.89,225.84,33.76940877]
[1738177958279,0.8854,225.89,225.85,0.66399196]
[1738177958597,34.65460877,225.93,225.86,0.66413745]
[1738177958798,0.03,225.94,225.87,33.76940877]
[1738177958987,0.03,225.94,225.91,33.76940877]
[1738177959203,0.03,225.94,225.92,0.6637778]
[1738177959496,0.03,225.94,225.92,0.66383762]
[1738177959710,0.03,225.94,225.85,34.43327159]
[1738177959711,33.79940877,225.94,225.85,34.43327159]
[1738177959994,33.76940877,225.87,225.81,0.66399399]
[1738177960369,33.76940877,225.87,225.79,0.66410591]
[1738177961002,33.76940877,225.85,225.79,0.66410591]
[1738177961174,0.8855,225.84,225.77,0.66415137]
[1738177961579,0.8855,225.84,225.71,312.12549]
[1738177961580,33.76940877,225.81,225.75,0.66419842]
[1738177961784,33.76940877,225.79,225.73,0.66432776]
[1738177962004,33.76940877,225.77,225.7,0.66437573]
[1738177962299,33.76940877,225.74,225.69,0.72749912]
[1738177962689,33.76940877,225.76,225.69,0.72749912]
[1738177963200,0.8859,225.75,225.69,0.72749912]
[1738177963577,3.1007,225.75,225.69,0.72749912]
[1738177963784,0.8859,225.75,225.69,34.49690789]
[1738177964580,33.76940877,225.74,225.69,0.72749912]
[1738177964875,33.76940877,225.72,225.69,0.063]
[1738177965091,1.0,225.82,225.69,0.063]
[1738177965092,33.76940877,225.86,225.72,31.0]
[1738177965310,0.8854,225.88,225.73,0.66413061]
[1738177965597,0.8854,225.88,225.8,33.76940877]
[1738177965786,0.8854,225.88,225.81,0.66409702]
[1738177965787,3.0989,225.88,225.81,0.66409702]
[1738177965995,36.86830877,225.88,225.8,33.76940877]
[1738177966305,33.76940877,225.86,225.76,33.76940877]
[1738177966477,33.76940877,225.86,225.72,0.12549]
[1738177966478,33.76940877,225.8,225.72,0.66423578]
[1738177966682,33.76940877,225.78,225.72,0.66423578]
[1738177966869,33.76940877,225.78,225.71,0.66447812]
[1738177967070,0.8858,225.77,225.69,0.72745752]
[1738177967500,33.76940877,225.74,225.69,0.063]
[1738177968806,33.76940877,225.72,225.69,0.063]
[1738177968971,33.76940877,225.7,225.69,0.063]
[1738177969168,34.65550877,225.7,225.69,0.063]
[1738177969368,34.65550877,225.7,225.69,0.0001]
[1738177969602,58.43239277,225.7,225.69,0.0001]
[1738177969971,59.43239277,225.7,225.69,0.0001]
[1738177970168,59.43239277,225.7,225.54,0.66489106]
[1738177970169,20.0,225.67,225.54,0.66489106]
[1738177970397,33.76940877,225.6,225.53,0.66497428]
[1738177970579,33.76940877,225.62,225.53,34.43438305]
[1738177970975,33.76940877,225.64,225.55,33.76940877]
[1738177971199,33.76940877,225.64,225.53,0.66497428]
[1738177971200,0.8863,225.65,225.59,33.76940877]
[1738177971394,0.8863,225.65,225.6,0.66470874]
[1738177972207,0.8863,225.65,225.57,33.76940877]
[1738177972378,3.1021,225.65,225.57,33.76940877]
[1738177972701,33.76940877,225.62,225.55,33.76940877]
[1738177972883,33.76940877,225.62,225.56,0.66489896]
[1738177973078,33.76940877,225.6,225.51,34.43431058]
[1738177973280,33.76940877,225.56,225.47,33.76940877]
[1738177973576,33.76940877,225.61,225.46,0.72804764]
[1738177973577,33.76940877,225.5,225.46,0.063]
[1738177973790,33.76940877,225.48,225.46,0.063]
[1738177974000,33.76940877,225.5,225.46,0.063]
[1738177974586,33.76940877,225.48,225.46,0.0001]
[1738177975087,0.8869,225.49,225.46,0.0001]
[1738177975678,33.76940877,225.48,225.46,0.0001]
[1738177976517,0.8869,225.49,225.46,0.0001]
[1738177976809,1.0,225.57,225.46,0.0001]
[1738177976810,0.8865,225.59,225.48,33.76940877]
[1738177977112,0.8865,225.59,225.55,33.76940877]
[1738177977409,0.8864,225.61,225.56,0.66490282]
[1738177977611,0.8864,225.63,225.57,33.76940877]
[1738177977782,0.8862,225.67,225.59,33.76940877]
[1738177977979,33.76940877,225.61,225.53,34.02038877]
[1738177978282,33.76940877,225.65,225.55,33.76940877]
[1738177978481,33.76940877,225.65,225.56,0.6648061]
[1738177978679,33.76940877,225.61,225.53,33.76940877]
[1738177979017,33.76940877,225.71,225.61,0.25098]
[1738177979180,0.8858,225.76,225.68,33.76940877]
[1738177979384,3.1005,225.76,225.7,33.76940877]
[1738177979583,33.76940877,225.71,225.64,0.66451493]
[1738177979776,33.76940877,225.66,225.59,0.66467983]
[1738177979973,33.76940877,225.64,225.54,34.43423349]
[1738177980218,34.76940877,225.72,225.54,0.66484345]
[1738177980219,33.76940877,225.6,225.54,0.66484345]
[1738177980381,23.776884,225.66,225.53,7.02045623]
[1738177980580,33.76940877,225.56,225.48,33.76940877]
[1738177980880,33.76940877,225.56,225.42,6.0004]
[1738177980881,33.76940877,225.54,225.46,0.66515507]
[1738177981081,33.76940877,225.61,225.47,0.50196]
[1738177981082,33.76940877,225.55,225.47,0.50196]
[1738177981299,0.8866,225.56,225.48,34.43439292]
[1738177981493,33.76940877,225.57,225.49,0.25098]
[1738177981804,0.8866,225.58,225.51,0.25098]
[1738177982005,0.8865,225.6,225.53,0.25098]
[1738177982189,33.76940877,225.57,225.54,0.66488061]
[1738177982389,33.76940877,225.55,225.49,0.6650323]
[1738177982588,33.76940877,225.55,225.46,0.0001]
[1738177982589,33.76940877,225.52,225.46,0.66520877]
[1738177982786,33.76940877,225.58,225.48,34.02038877]
[1738177982986,34.65590877,225.6,225.53,0.12549]
[1738177983201,34.65580877,225.62,225.55,0.25098]
[1738177983411,34.65580877,225.62,225.56,0.66483375]
[1738177983793,33.76940877,225.57,225.52,0.66481676]
[1738177984698,33.76940877,225.59,225.52,0.66481676]
[1738177984887,33.76940877,225.61,225.53,34.02038877]
[1738177985085,33.76940877,225.63,225.55,34.02038877]
[1738177985286,33.76940877,225.69,225.61,33.76940877]
[1738177985524,0.03,225.77,225.64,0.25098]
[1738177985525,33.76940877,225.73,225.64,0.25098]
[1738177985684,0.8859,225.76,225.71,33.76940877]
[1738177985890,0.8859,225.76,225.68,0.25098]
[1738177985891,0.03,225.77,225.73,33.76940877]
[1738177986207,0.03,225.77,225.72,0.66435553]
[1738177986208,0.03,225.77,225.76,0.25098]
[1738177986384,0.03,225.77,225.76,0.91512484]
[1738177986585,0.03,225.77,225.76,0.66414484]
[1738177986801,0.03,225.77,225.76,7.07954484]
[1738177987009,0.03,225.77,225.76,7.58150484]
[1738177987222,34.65480877,225.89,225.82,0.25098]
[1738177987499,0.03,225.94,225.88,0.25098]
[1738177987709,0.03,225.94,225.89,0.66380022]
[1738177988108,0.03,225.94,225.9,0.25098]
[1738177988426,0.03,225.94,225.91,0.66380749]
[1738177988627,0.03,225.94,225.93,34.02038877]
[1738177988806,0.03,225.94,225.91,0.66380749]
[1738177989004,0.03,225.94,225.91,34.43321626]
[1738177989228,0.03,225.94,225.92,0.50196]
[1738177989521,0.03,226.0,225.99,20.0]
[1738177989697,0.03,226.0,225.99,34.43278818]
[1738177990097,0.03,226.0,225.99,34.93474818]
[1738177990728,33.76940877,226.08,225.99,34.93474818]
[1738177990729,33.76940877,226.08,225.99,346.93474818]
[1738177990908,33.79940877,226.1,226.02,33.76940877]
[1738177991096,33.79940877,226.1,226.03,0.66342292]
[1738177991301,33.76940877,226.08,226.03,0.66342292]
[1738177991614,0.03,226.1,226.04,34.27136877]
[1738177991928,0.03,226.1,226.06,0.25098]
[1738177991929,0.9145,226.1,226.06,0.25098]
[1738177992099,0.9145,226.1,226.07,0.6633542]
[1738177992306,0.03,226.1,226.07,0.6633542]
[1738177992513,34.68390877,226.1,226.07,0.6633542]
[1738177992811,34.68390877,226.1,226.01,0.66339288]
[1738177993125,0.9145,226.1,226.03,0.50196]
[1738177993328,0.9145,226.1,226.05,0.25098]
[1738177993498,0.03,226.1,226.07,0.25098]
[1738177993695,0.03,226.1,226.09,33.76940877]
[1738177993900,0.03,226.1,226.09,34.27136877]
[1738177994518,0.03,226.22,226.14,20.50196]
[1738177994724,0.03,226.22,226.16,34.27136877]
[1738177995304,0.9142,226.17,226.15,0.66296571]
[1738177995525,34.68360877,226.17,226.03,33.76940877]
[1738177995708,34.68360877,226.17,225.99,33.76940877]
[1738177995709,33.76940877,226.08,225.99,33.76940877]
[1738177995912,33.76940877,226.04,226.0,0.66341416]
[1738177996142,1.0,226.13,225.96,0.66349637]
[1738177996143,1.0,226.11,225.96,0.66349637]
[1738177996311,0.663,226.1,225.87,0.6636913]
[1738177996631,1.0,226.08,225.87,0.6636913]
[1738177996931,21.0,226.05,225.87,0.6636913]
[1738177997142,0.663,226.07,225.91,33.76940877]
[1738177997143,33.76940877,226.0,225.91,33.76940877]
[1738177997433,33.76940877,226.0,225.86,40.8468]
[1738177997434,33.76940877,225.96,225.92,0.66370595]
[1738177997634,33.76940877,225.96,225.9,0.66377841]
[1738177997848,33.76940877,225.94,225.88,0.66381199]
[1738177998138,33.76940877,226.02,225.93,33.76940877]
[1738177998311,33.76940877,225.98,225.94,0.91458678]
[1738177998504,33.76940877,226.0,225.94,0.66360678]
[1738177998711,33.76940877,225.96,225.92,0.66368296]
[1738177998912,33.76940877,225.96,225.88,0.6638069]
[1738177999107,33.76940877,225.96,225.89,0.50196]
[1738177999339,33.76940877,225.98,225.9,0.66376603]
[1738178000043,34.65440877,225.98,225.91,34.27136877]
[1738178000209,34.65440877,225.98,225.92,0.66376227]
[1738178000410,33.76940877,225.96,225.92,0.66376227]
[1738178000628,33.76940877,225.94,225.88,0.66380332]
[1738178000839,33.76940877,225.95,225.88,34.43321209]
[1738178001142,0.8849,226.0,225.92,33.76940877]
[1738178001437,0.8849,226.0,225.93,0.66369006]
[1738178001626,0.8849,226.0,225.82,19.704784]
[1738178001627,33.76940877,225.94,225.88,0.66371819]
[1738178001809,33.76940877,225.89,225.84,0.6639332]
[1738178002006,33.76940877,225.85,225.82,0.66397858]
[1738178002226,33.76940877,225.85,225.78,0.66409881]
[1738178002513,33.76940877,225.83,225.78,0.66409881]
[1738178002839,2.2131,225.92,225.79,0.50196]
[1738178002840,33.76940877,225.85,225.79,0.50196]
[1738178003024,2.2131,225.92,225.76,6.2048]
[1738178003025,33.76940877,225.81,225.8,0.66407178]
[1738178003218,33.76940877,225.81,225.78,0.66407178]
[1738178003533,33.76940877,225.79,225.7,0.66425958]
[1738178003742,33.76940877,225.78,225.71,0.50196]
[1738178004040,33.76940877,225.82,225.73,0.25098]
[1738178004218,33.76940877,225.82,225.74,0.66426762]
[1738178004414,33.66940877,225.8,225.74,0.66426762]
[1738178004740,33.76940877,225.86,225.78,0.50196]
[1738178005034,33.76940877,225.86,225.72,68.19960877]
[1738178005035,0.663,225.85,225.76,0.66402468]
[1738178005241,0.663,225.87,225.67,5.09541663]
[1738178005421,0.663,225.87,225.73,0.50196]
[1738178005630,0.663,225.89,225.75,0.50196]
[1738178005937,3.7609,225.96,225.78,0.50196]
[1738178006238,33.76940877,225.9,225.83,0.25098]
[1738178006409,33.76940877,225.84,225.78,0.6640013]
[1738178006619,33.76940877,225.94,225.74,0.66416203]
[1738178006620,33.76940877,225.8,225.74,0.66416203]
[1738178006922,33.76940877,225.78,225.75,0.31398]
[1738178007231,33.76940877,225.76,225.75,0.063]
[1738178007847,34.65520877,225.76,225.75,0.063]
[1738178008140,34.65520877,225.76,225.75,0.0001]
[1738178009330,34.65520877,225.76,225.6,0.66463287]
[1738178009331,20.0,225.73,225.6,0.66463287]
[1738178009534,33.76940877,225.64,225.6,0.66463287]
[1738178009922,0.8864,225.61,225.57,0.66482186]
[1738178010141,0.8864,225.61,225.55,0.25098]
[1738178010441,0.8864,225.61,225.56,0.66482722]
[1738178010941,33.76940877,225.62,225.57,0.25098]
[1738178011119,33.76940877,225.62,225.54,312.063]
[1738178011120,33.76940877,225.59,225.55,0.66485434]
[1738178011444,33.76940877,225.57,225.54,0.063]
[1738178011812,33.76940877,225.63,225.54,33.83240877]
[1738178012120,33.76940877,225.61,225.56,0.25098]
[1738178012320,33.76940877,225.63,225.58,0.25098]
[1738178012521,33.76940877,225.61,225.59,0.66479876]
[1738178012734,0.8863,225.65,225.6,0.25098]
[1738178012735,33.76940877,225.63,225.6,0.25098]
[1738178012935,34.65570877,225.65,225.61,0.66474173]
[1738178013144,33.76940877,225.65,225.62,0.25098]
[1738178013343,33.76940877,225.71,225.64,0.25098]
[1738178013517,33.76940877,225.67,225.65,0.6645895]
[1738178013717,33.76940877,225.69,225.65,0.6645895]
[1738178014016,34.65520877,225.77,225.68,0.25098]
[1738178014323,33.76940877,225.71,225.69,0.66438713]
[1738178014528,0.663,225.76,225.63,33.76940877]
[1738178014529,33.76940877,225.73,225.67,0.25098]
[1738178014727,3.1004,225.77,225.67,0.25098]
[1738178014728,33.76940877,225.71,225.68,0.6644937]
[1738178015226,33.76940877,225.71,225.64,0.66451005]
[1738178015431,33.76940877,225.71,225.65,0.25098]
[1738178015736,33.76940877,225.87,225.74,0.25098]
[1738178016041,33.76940877,225.89,225.81,0.25098]
[1738178016224,33.76940877,225.89,225.82,0.66406131]
[1738178016426,33.76940877,225.91,225.83,34.27136877]
[1738178016733,33.76940877,225.95,225.86,0.25098]
[1738178016927,33.76940877,225.88,225.86,0.66388631]
[1738178017123,33.76940877,225.9,225.82,33.76940877]
[1738178017325,33.76940877,225.96,225.86,33.76940877]
[1738178017526,33.76940877,225.96,225.76,46.5031]
[1738178017527,33.76940877,225.92,225.87,0.66388971]
[1738178017737,33.76940877,225.96,225.88,0.50196]
[1738178017938,33.76940877,225.96,225.89,0.663825]
[1738178018239,33.76940877,225.94,225.89,0.663825]
[1738178018442,0.8848,226.02,225.89,0.663825]
[1738178018443,33.76940877,225.96,225.9,0.50196]
[1738178018632,33.76940877,225.96,225.92,0.25098]
[1738178018832,33.76940877,225.94,225.92,0.66376428]
[1738178019037,33.76940877,225.94,225.88,0.66382976]
[1738178019543,33.76940877,225.92,225.88,0.66382976]
[1738178020047,0.8853,225.91,225.9,0.25098]
[1738178020340,0.03,225.93,225.92,0.50196]
[1738178020567,0.03,225.93,225.92,34.93493782]
[1738178020753,33.76940877,226.07,225.99,0.12549]
[1738178020920,33.76940877,226.09,226.02,0.12549]
[1738178021122,33.76940877,226.07,226.03,0.66341937]
[1738178021356,33.76940877,226.05,225.99,0.66352763]
[1738178021639,33.76940877,226.03,225.95,0.25098]
[1738178021844,33.76940877,226.03,225.92,0.12549]
[1738178021845,33.76940877,225.99,225.96,0.66358232]
[1738178022242,33.76940877,226.05,225.97,0.12549]
[1738178022544,33.76940877,226.01,225.97,0.78905701]
[1738178022727,33.76940877,226.03,225.98,0.12549]
[1738178022928,33.76940877,226.09,226.02,0.25098]
[1738178023239,0.8845,226.1,226.06,0.25098]
[1738178023441,0.8845,226.12,226.08,0.12549]
[1738178023646,0.8845,226.12,226.09,0.66330113]
[1738178023844,33.79940877,226.13,226.1,0.25098]
[1738178023845,0.03,226.13,226.1,0.25098]
[1738178024143,0.03,226.13,226.12,0.12549]
[1738178024345,0.03,226.13,226.11,34.43258851]
[1738178024346,33.79940877,226.13,226.11,0.66317974]
[1738178024556,33.79940877,226.13,226.05,0.66330557]
[1738178024740,33.76940877,226.09,226.05,0.66330557]
[1738178025258,33.76940877,226.07,226.05,0.66330557]
[1738178025463,33.76940877,226.07,226.0,0.66349433]
[1738178025624,33.76940877,226.07,226.01,0.25098]
[1738178025828,33.76940877,226.09,226.03,0.25098]
[1738178026136,33.76940877,226.05,226.03,0.66341988]
[1738178026325,33.76940877,226.07,225.99,33.76940877]
[1738178026641,33.76940877,226.11,226.04,0.25098]
[1738178026841,33.76940877,226.11,226.05,0.66335381]
[1738178027032,33.76940877,226.07,226.04,0.66340543]
[1738178027236,33.76940877,226.07,225.97,33.76940877]